Cogmind - Beta 13 @@@ ROGUE MODE // 2024.05.31 @ 00:27:55 Player: saltine Result: Destroyed by Y-54 Guardian with Gatling Laser Performance ------------- Evolutions (3) 1500 Regions Visited (7) 1400 Robots Destroyed (49) 245 Value Destroyed (2119) 2119 Prototype IDs (2) 40 Alien Tech Used (0) 0 Bonus (967) 967 TOTAL SCORE: 6271 Bonus ------- High Alert Combat Kills 67 Entered Garrisons 400 Used RIF Installer 500 Cogmind --------- Core Integrity 0/700 Matter 7/300 Energy 90/100 System Corruption 0% Temperature Cool (12) Movement Core (50) Location -7/Garrison Parts ------- > --- POWER (2) -------- (None) > --- PROPULSION (4) --- (None) > --- UTILITY (4) ------ System Shield > --- WEAPON (3) ------- Mini Grenade Launcher > --- INVENTORY (5) ---- Relay Coupler [Hunter] (16) EMP Blaster Peak State ------------ > --- POWER ------------ Improved Ion Engine Improved Ion Engine > --- PROPULSION ------- Light Treads Improved Treads > --- UTILITY ---------- Scrap Engine Small Storage Unit Hacking Suite > --- WEAPON ----------- Cooled Plasma Cannon Shotgun Mini Grenade Launcher > --- INVENTORY -------- Ion Engine Relay Coupler [Hunter] Mini Grenade Launcher Mini Grenade Launcher [Rating: 38] Favorites ----------- Power Improved Ion Engine Engine Improved Ion Engine Propulsion Improved Treads Treads Improved Treads Utility Small Storage Unit Device Scrap Engine Storage Small Storage Unit Hackware Hacking Suite Protection Light Armor Plating Weapon Cooled Plasma Cannon Energy Cannon Cooled Plasma Cannon Ballistic Gun Improved Assault Rifle Ballistic Cannon Light Cannon Launcher Mini Grenade Launcher Build | -11 -10 -9 -9 -9 -9 -7 -7 ------- Run | Yrd Mat Mat Sto Gar Rec Fac Gar Slots Evolved 6 | . . 2 . . . 4 . Power 1 | . . . . . . 1 . Propulsion 2 | . . 1 . . . 1 . Utility 2 | . . 1 . . . 1 . Weapon 1 | . . . . . . 1 . Parts Attached 37 | 6 . 8 3 . 2 17 1 Power 5 | 1 . 2 . . . 2 . Engine 5 | 1 . 2 . . . 2 . Core . | . . . . . . . . Reactor . | . . . . . . . . Propulsion 11 | 2 . 3 . . . 6 . Treads 11 | 2 . 3 . . . 6 . Leg . | . . . . . . . . Wheel . | . . . . . . . . Hover . | . . . . . . . . Flight . | . . . . . . . . Utility 9 | 1 . 1 1 . 1 5 . Device 3 | . . . . . 1 2 . Storage 1 | 1 . . . . . . . Processor . | . . . . . . . . Hackware 3 | . . . . . . 3 . Protection 2 | . . 1 1 . . . . Artifact . | . . . . . . . . Weapon 12 | 2 . 2 2 . 1 4 1 Energy Gun . | . . . . . . . . Energy Cannon 2 | . . . 1 . . 1 . Ballistic Gun 6 | 2 . 2 . . 1 1 . Ballistic Cannon 1 | . . . 1 . . . . Launcher 3 | . . . . . . 2 1 Special Weapon . | . . . . . . . . Impact Weapon . | . . . . . . . . Slashing Weapon . | . . . . . . . . Piercing Weapon . | . . . . . . . . Special Melee Weapon . | . . . . . . . . Unidentified Prototypes 2 | . . 1 1 . . . . Parts Lost 20 | . . 3 . 4 . 13 . Power 4 | . . 1 . . . 3 . Propulsion 6 | . . 1 . 1 . 4 . Utility 4 | . . . . 2 . 2 . Weapon 6 | . . 1 . 1 . 4 . Highest Loss Streak 7 | . . 3 . 3 . 7 . To Critical Strikes . | . . . . . . . . Average Slot Usage (%) 71 | . 85 77 100 71 66 54 7 Engine 10 | . 14 11 11 11 11 7 . Treads 23 | . 28 24 33 25 22 13 . Device 2 | . . . . . 11 7 . Storage 10 | . 14 11 11 11 11 7 . Protection 6 | . . 9 22 8 . . . Energy Cannon 5 | . . . 2 11 11 4 . Ballistic Gun 10 | . 28 22 16 3 . 4 . Naked Turns . | . . . . . . . . Heaviest Build 32 | 13 13 21 29 29 24 32 . Greatest Support 89 | 40 40 69 69 69 46 89 3 Greatest Overweight (x) 3 | 3 . . . . . 3 . Average Overweight (x) . | . . . . . . . . Largest Inventory Capacity 8 | 8 8 8 8 8 8 8 8 Average Capacity 7 | 7 8 8 8 8 8 8 5 Most Carried 8 | 2 2 7 8 8 7 7 3 Average Carried 5 | 1 2 3 7 7 7 4 2 Final Capacity 8 | 8 8 8 8 8 8 8 5 Final Carried 8 | 2 2 7 8 7 7 3 2 Class Distribution -------------------- 94% | Mutant 5% | Gunner Dominant Class ---------------- Mutant | -10/Materials Mutant | -9/Materials Mutant | -9/Storage Mutant | -9/Garrison Mutant | -9/Recycling Gunner | -7/Factory Mutant | -7/Garrison Resources | -11 -10 -9 -9 -9 -9 -7 -7 ----------- Run | Yrd Mat Mat Sto Gar Rec Fac Gar Matter Collected 748 | 173 135 255 41 144 . . . Remotely . | . . . . . . . . Salvage Created 1646 | . 204 416 99 722 . 205 . Parts 93 | . 8 26 9 39 . 11 . Haulers Intercepted . | . . . . . . . . Recyclers Shooed 1 | . . 1 . . . . . Parts Field Recycled . | . . . . . . . . Retrieved Matter . | . . . . . . . . Parts Self-Destructed . | . . . . . . . . Prevented . | . . . . . . . . Kills | -11 -10 -9 -9 -9 -9 -7 -7 ------- Run | Yrd Mat Mat Sto Gar Rec Fac Gar Combat Hostiles Destroyed 46 | . 4 11 2 23 . 6 . Guns 26 | . 4 11 1 8 . 2 . Cannons 15 | . . . 1 14 . . . AOE 4 | . . . . . . 4 . Classes Destroyed 6 | . 1 2 . 1 . 2 . Builder 2 | . . . . . . 2 . Mechanic 1 | . . . . . . 1 . Swarmer 12 | . . 3 . 9 . . . Grunt 29 | . 4 6 . 13 . 6 . Sentry 4 | . . 2 2 . . . . Programmer 1 | . . . . 1 . . . Best Kill Streak 5 | . 2 4 2 5 . 4 . Combat Bots Only 5 | . 2 4 2 5 . 3 . Max Kills in Single Turn 2 | . 1 1 1 1 . 2 . Gunslinging . | . . . . . . . . Exploded 2 | . . . . . . 2 . Melee . | . . . . . . . . Uniques/NPCs Destroyed . | . . . . . . . . Combat | -11 -10 -9 -9 -9 -9 -7 -7 -------- Run | Yrd Mat Mat Sto Gar Rec Fac Gar Hostile Shots Fired 369 | . 22 124 4 105 . 71 43 Missed 108 | . 8 43 2 27 . 15 13 Damage Taken 3366 | . 162 912 30 764 . 1109 389 Core 997 | . 46 129 . 113 . 355 354 Absorbed by Shields 87 | . . . . . . . 87 Core Remaining (%) 73 | 100 81 . . . 39 . . Volleys Fired 135 | . 12 42 3 62 . 16 . Largest 3 | . 2 2 2 2 . 3 . Hottest 105 | . 40 43 58 105 . 88 . Shots Fired 223 | . 24 84 6 88 . 21 . Gun 143 | . 24 84 3 27 . 5 . Cannon 65 | . . . 3 61 . 1 . Launcher 15 | . . . . . . 15 . Special . | . . . . . . . . Kinetic 146 | . 24 84 6 27 . 5 . Thermal 62 | . . . . 61 . 1 . Explosive 15 | . . . . . . 15 . Electromagnetic . | . . . . . . . . Robot Hit Streak 10 | . 9 10 10 7 . 4 . Robot Miss Streak 6 | . 1 6 . 3 . 2 . Penetration Max . | . . . . . . . . Secondary Targets 5 | . 1 4 . . . . . Max Gunslinging Chain 1 | . 1 1 . . . . . Shots Hit Robots 132 | . 18 51 5 44 . 14 . Core Hits 75 | . 10 19 4 24 . 18 . Critical Kills 1 | . . . . 1 . . . Critical Parts Destroyed . | . . . . . . . . Critical Strikes 1 | . . . . 1 . . . Meltdown 1 | . . . . 1 . . . Melee Attacks . | . . . . . . . . Impact . | . . . . . . . . Slashing . | . . . . . . . . Piercing . | . . . . . . . . Sneak Attacks . | . . . . . . . . Combat Hostiles . | . . . . . . . . Follow-up Attacks . | . . . . . . . . Damage Inflicted 3351 | . 204 678 80 1314 . 1068 7 Guns 1234 | . 204 672 44 252 . 62 . Cannons 1128 | . . . 36 1062 . 30 . Explosions 976 | . . . . . . 976 . Melee . | . . . . . . . . Ramming 13 | . . 6 . . . . 7 Kinetic 1270 | . 204 672 80 252 . 62 . Thermal 1092 | . . . . 1062 . 30 . Explosive 976 | . . . . . . 976 . Electromagnetic . | . . . . . . . . Impact . | . . . . . . . . Slashing . | . . . . . . . . Piercing . | . . . . . . . . Highest Corruption 1 | . 1 . . 1 1 . . Average Corruption 1 | . 1 . . 1 1 . . Corruption Purged . | . . . . . . . . Corruption Blocked . | . . . . . . . . Effects 6 | . . . . 5 1 . . Message Errors 3 | . . . . 3 . . . Matter Fused 1 | . . . . 1 . . . Data Loss (minor) 2 | . . . . 1 1 . . Overload Shots 7 | . . . . 7 . . . Overflow Damage 139 | . . . . 75 . 64 . Projectiles 75 | . . . . 75 . . . Explosions 64 | . . . . . . 64 . Melee . | . . . . . . . . Knockbacks . | . . . . . . . . Impact . | . . . . . . . . Kinetic . | . . . . . . . . Secondary . | . . . . . . . . Self-Inflicted Damage 260 | . . . . . . 258 2 Shots 7 | . . . . . . 7 . Rammed 4 | . . 1 . . . . 3 Targets Rammed 4 | . . 1 . . . . 3 Kicked . | . . . . . . . . Crushed . | . . . . . . . . Highest Temperature 258 | . 15 18 9 258 . 30 . Average Temperature 51 | . 7 7 4 69 . 18 . Received Heat Transfer 1300 | . 93 318 . 237 . 522 130 Effects 1 | . . . . 1 . . . Energy Bleed 1 | . . . . 1 . . . Siege Activations . | . . . . . . . . Robots Corrupted . | . . . . . . . . Combat Hostiles . | . . . . . . . . Parts Fried . | . . . . . . . . Impact Corruptions . | . . . . . . . . Robots Melted 1 | . . . . 1 . . . Combat Hostiles 1 | . . . . 1 . . . Parts Melted 6 | . . . . 6 . . . Heat Transferred 1620 | . . . . 1570 . 50 . Parts Sabotaged . | . . . . . . . . Parts Stolen . | . . . . . . . . Parts Stripped . | . . . . . . . . Power Chain Reactions . | . . . . . . . . Alert | -11 -10 -9 -9 -9 -9 -7 -7 ------- Run | Yrd Mat Mat Sto Gar Rec Fac Gar Peak Influence 746 | . 150 264 148 746 335 317 203 Initial 335 | . . 63 66 96 335 106 203 Average 279 | . 52 150 94 495 325 205 203 Maximum Alert Level 3 | . . 1 . 3 1 1 1 Low Security (%) 45 | 100 100 72 100 14 4 57 . Level 1 32 | . . 27 . 18 95 42 100 Level 2 15 | . . . . 45 . . . Level 3 7 | . . . . 21 . . . Level 4 . | . . . . . . . . Level 5 . | . . . . . . . . High Security . | . . . . . . . . Max Security . | . . . . . . . . Squads Dispatched 6 | . . 1 . . . 5 . Investigation 2 | . . . . . . 2 . Extermination . | . . . . . . . . Reinforcement 4 | . . 1 . . . 3 . Assault . | . . . . . . . . Garrison . | . . . . . . . . Intercept . | . . . . . . . . Searches Triggered . | . . . . . . . . Construction Impeded 2 | . . . . . . 2 . Haulers Reinforced . | . . . . . . . . Active Scanning Responses . | . . . . . . . . Cargo Convoy Interrupts . | . . . . . . . . Stealth | -11 -10 -9 -9 -9 -9 -7 -7 --------- Run | Yrd Mat Mat Sto Gar Rec Fac Gar Distress Signals 2 | . 1 1 . . . . . Communications Jammed . | . . . . . . . . Distress Signals . | . . . . . . . . Times Spotted 72 | . 7 17 2 24 . 16 6 Peak Tracking Total 7 | . 3 6 2 4 . 7 6 Tactical Retreats 1 | . 1 . . . . . . Traps | -11 -10 -9 -9 -9 -9 -7 -7 ------- Run | Yrd Mat Mat Sto Gar Rec Fac Gar Traps Triggered 9 | . 1 . . . . 2 6 Indirectly . | . . . . . . . . Trap Hack Attempts . | . . . . . . . . Triggered . | . . . . . . . . Disarmed . | . . . . . . . . Reprogrammed . | . . . . . . . . Reused . | . . . . . . . . Traps Extracted . | . . . . . . . . Installed . | . . . . . . . . Triggered . | . . . . . . . . Machines | -11 -10 -9 -9 -9 -9 -7 -7 ---------- Run | Yrd Mat Mat Sto Gar Rec Fac Gar Machines Disabled 5 | . . . . 3 . 2 . Max in Single Turn 1 | . . . . 1 . 1 . Garrison Relay 3 | . . . . 3 . . . Machines Repaired . | . . . . . . . . Machines Dismantled . | . . . . . . . . Machines Sabotaged . | . . . . . . . . Overloaded Fab Kills . | . . . . . . . . Hacking | -11 -10 -9 -9 -9 -9 -7 -7 --------- Run | Yrd Mat Mat Sto Gar Rec Fac Gar Machines Accessed 28 | . 5 5 5 3 7 3 . Terminals 21 | . 5 3 4 3 4 2 . Fabricators . | . . . . . . . . Repair Stations 1 | . . 1 . . . . . Recycling Units 4 | . . 1 . . 3 . . Scanalyzers . | . . . . . . . . Garrison Access 2 | . . . 1 . . 1 . Total Hacks 62 | . 16 9 8 6 15 8 . Successful 18 | . 5 3 4 1 3 2 . Failed 43 | . 11 6 4 5 12 5 . Catastrophic 11 | . 4 1 1 1 4 . . Database Lockouts 1 | . . . . . . 1 . Manual 34 | . 12 5 2 . 8 7 . Terminals 51 | . 16 6 7 6 9 7 . Fabricators . | . . . . . . . . Repair Stations 2 | . . 2 . . . . . Recycling Units 7 | . . 1 . . 6 . . Scanalyzers . | . . . . . . . . Garrison Access 2 | . . . 1 . . 1 . Terminal Hacks 8 | . 3 1 2 1 . 1 . Record 1 | . . . . . . 1 . Robot Analysis 1 | . 1 . . . . . . Open Door 2 | . . . 2 . . . . Emergency Access Points 1 | . . 1 . . . . . Locate Traps 1 | . 1 . . . . . . Registered Components 1 | . 1 . . . . . . Garrison Registry 1 | . . . . 1 . . . Fabricator Hacks . | . . . . . . . . Repair Station Hacks 1 | . . 1 . . . . . Refit 1 | . . 1 . . . . . Recycling Unit Hacks 2 | . . . . . 2 . . Retrieve Matter 1 | . . . . . 1 . . Retrieve Components 1 | . . . . . 1 . . Scanalyzer . | . . . . . . . . Garrison Access Hacks 2 | . . . 1 . . 1 . Unlock Access 2 | . . . 1 . . 1 . Unauthorized Hacks 5 | . 2 1 1 . 1 . . Terminals 4 | . 2 1 1 . . . . Botnet 4 | . 2 1 1 . . . . Fabricators . | . . . . . . . . Repair Stations . | . . . . . . . . Recycling Units 1 | . . . . . 1 . . Monitor 1 | . . . . . 1 . . Scanalyzers . | . . . . . . . . Garrison Access . | . . . . . . . . Data Cores Recovered . | . . . . . . . . Used . | . . . . . . . . Hacking Detections 23 | . 5 4 3 3 6 2 . Full Trace Events 3 | . . . . . 1 2 . Feedback Events . | . . . . . . . . Feedback Blocked . | . . . . . . . . Robot Schematics Acquired . | . . . . . . . . Robots Built . | . . . . . . . . Authchips . | . . . . . . . . Time . | . . . . . . . . Total Robot Build Rating . | . . . . . . . . Part Schematics Acquired . | . . . . . . . . Parts Built . | . . . . . . . . Authchips . | . . . . . . . . Time . | . . . . . . . . Total Part Build Rating . | . . . . . . . . Parts Repaired . | . . . . . . . . Time . | . . . . . . . . Parts Recycled . | . . . . . . . . Recycled Matter . | . . . . . . . . Retrieved Matter . | . . . . . . . . Retrieved Components 1 | . . . . . 1 . . Parts Scanalyzed . | . . . . . . . . Part Schematics Acquired . | . . . . . . . . Parts Damaged . | . . . . . . . . Bothacking | -11 -10 -9 -9 -9 -9 -7 -7 ------------ Run | Yrd Mat Mat Sto Gar Rec Fac Gar Used RIF Installer 1 | . . . . 1 . . . Robots Hacked . | . . . . . . . . Non-combat . | . . . . . . . . Combat . | . . . . . . . . Robot Hacks Applied . | . . . . . . . . Relay Couplers Released 16 | . . . . 16 . . . Machine Destruction 13 | . . . . 13 . . . Programmers 3 | . . . . 3 . . . Fabnet Peak Effective % . | . . . . . . . . Robots Rewired . | . . . . . . . . Allies Hacked . | . . . . . . . . Hacks Repelled . | . . . . . . . . Allies | -11 -10 -9 -9 -9 -9 -7 -7 -------- Run | Yrd Mat Mat Sto Gar Rec Fac Gar Total Allies . | . . . . . . . . Largest Group . | . . . . . . . . Highest-Rated Group . | . . . . . . . . Highest-Rated Ally . | . . . . . . . . Total Orders . | . . . . . . . . Ally Attacks . | . . . . . . . . Total Damage . | . . . . . . . . Kills . | . . . . . . . . Allies Corrupted . | . . . . . . . . Allies Melted . | . . . . . . . . Intel | -11 -10 -9 -9 -9 -9 -7 -7 ------- Run | Yrd Mat Mat Sto Gar Rec Fac Gar Robot Analysis Total 1 | . 1 . . . . . . Derelict Logs Recovered . | . . . . . . . . Drone Launches . | . . . . . . . . Drone Recoveries . | . . . . . . . . Exploration | -11 -10 -9 -9 -9 -9 -7 -7 ------------- Run | Yrd Mat Mat Sto Gar Rec Fac Gar Turns Passed 3054 | 73 339 583 206 1021 418 315 99 Spaces Moved 1635 | 40 191 274 110 536 260 167 57 Core 110 | 13 . . . . . 40 57 Treads 1525 | 27 191 274 110 536 260 127 . Legs . | . . . . . . . . Wheels . | . . . . . . . . Hover . | . . . . . . . . Flight . | . . . . . . . . Fastest Speed 50 | 50 160 160 160 160 160 100 50 Average Speed 155 | 156 160 160 160 160 160 151 50 Slowest Speed 240 | 200 160 160 160 160 160 240 50 Overloaded Moves . | . . . . . . . . Propulsion Burnouts . | . . . . . . . . Robots Hopped . | . . . . . . . . Cave-ins Triggered . | . . . . . . . . Exploration Rate (%) 29 | 5 49 34 15 54 58 7 10 Regions Visited 7 Branch Regions 2 Pre-discovered Areas . | . . . . . . . . Known Exits Taken 2 | . . . 1 . . 1 . Unknown Exits Taken 4 | 1 1 1 . . 1 . . Scrap Searched . | . . . . . . . . Spaces Dug . | . . . . . . . . Terrain Destroyed 54 | . . . . 1 . 53 . Melee . | . . . . . . . . Projectile 1 | . . . . 1 . . . AOE 53 | . . . . . . 53 . Terrain Rammed . | . . . . . . . . Walls Destroyed . | . . . . . . . . Machines Disabled . | . . . . . . . . Actions | -11 -10 -9 -9 -9 -9 -7 -7 --------- Run | Yrd Mat Mat Sto Gar Rec Fac Gar Total 1927 | 47 203 338 135 612 261 203 128 Wait 20 | . 1 8 11 . . . . Move 1630 | 39 190 273 110 535 259 167 57 Hop . | . . . . . . . . Pick Up 16 | 2 . 5 3 5 . 1 . Fast Attach 31 | 6 . 4 3 4 2 12 . Attach 10 | . . 2 . 2 . 5 1 Detach . | . . . . . . . . Swap 2 | . . 2 . . . . . Drop 14 | . . 1 5 4 . 2 2 Fire 135 | . 12 42 3 62 . 16 . Melee . | . . . . . . . . Ram 3 | . . . . . . . 3 Kick . | . . . . . . . . Crush 1 | . . 1 . . . . . Escape Stasis 65 | . . . . . . . 65 Rewire . | . . . . . . . . Trap . | . . . . . . . . Miscellaneous . | . . . . . . . . Route ------- -11/Scrapyard -10/Materials (discovered 2 exits: *Mat / [*Min]) -9/Materials -9/Storage -9/Garrison (discovered 3 exits: *Rec x3) -9/Recycling -7/Factory -7/Garrison History --------- Turn | Location | Event 36 | -11/Scrapyard | Discovered new exit (range 15) 74 | -11/Scrapyard | Entered Materials 204 | -10/Materials | Discovered new exit (range 6) 303 | -10/Materials | Build established: Mutant 400 | -10/Materials | Discovered new exit (range 8) 413 | -10/Materials | Entered another Materials area 413 | -9/Materials | Evolved 2 slots: Propulsion x1, Utility x1 664 | -9/Materials | Lost 3 parts (1p1n1w) 973 | -9/Materials | Discovered new exit (range 7) 996 | -9/Materials | Entered Storage 1202 | -9/Storage | Identified exit to Garrison 1202 | -9/Storage | Entered Garrison 1218 | -9/Garrison | Triggered checkpoint 1346 | -9/Garrison | Triggered checkpoint 1406 | -9/Garrison | Garrison Relay disabled 1478 | -9/Garrison | Triggered checkpoint 1504 | -9/Garrison | Triggered checkpoint 1536 | -9/Garrison | Triggered checkpoint 1580 | -9/Garrison | Lost 3 parts (1n1u1w) 1625 | -9/Garrison | Discovered new exit (range 10) 1656 | -9/Garrison | Triggered checkpoint 1698 | -9/Garrison | Triggered checkpoint 1708 | -9/Garrison | Core integrity fell below 50% 1719 | -9/Garrison | Garrison Relay disabled 1952 | -9/Garrison | Triggered checkpoint 1979 | -9/Garrison | Discovered new exit (range 73) 1979 | -9/Garrison | Discovered new exit (range 27) 1979 | -9/Garrison | Discovered new exit (range 43) 2003 | -9/Garrison | Garrison Relay disabled 2156 | -9/Garrison | Installed Relay Interface Framework 2223 | -9/Garrison | Entered Recycling 2223 | -9/Recycling | Found Scrap Engine 2604 | -9/Recycling | Discovered new exit (range 13) 2641 | -9/Recycling | Entered Factory 2641 | -7/Factory | Evolved 4 slots: Power x1, Propulsion x1, Utility x1, Weapon x1 2821 | -7/Factory | Central database locked down 2869 | -7/Factory | Lost 4 parts (1p1u2w) 2954 | -7/Factory | Core integrity fell below 50% 2956 | -7/Factory | Identified exit to Garrison 2956 | -7/Factory | Entered Garrison 2958 | -7/Garrison | Lost 7 parts (2p2n1u2w) 3020 | -7/Garrison | Triggered checkpoint 3044 | -7/Garrison | Triggered checkpoint 3049 | -7/Garrison | Core integrity fell below 20% 3055 | -7/Garrison | Destroyed by Y-54 Guardian with Gatling Laser Last Messages --------------- 03039_ Field strength at 88. 03040_ Field strength at 82. 03041_ Field strength at 76. 03042_ Field strength at 70. 03043_ Field strength at 59. 03044_ Beams of light sweep through the air. An alarm sounds. 03044_ Field strength at 53. 03045_ Field strength at 47. 03046_ X-67 Chaingunner springs to life. 03046_ Field strength at 34. 03047_ Field strength at 24. 03048_ Field strength at 18. 03049_ ALERT: Dispatching investigation squad to Factory. 03049_ Field strength at 2. 03050_ Stasis field depleted. 03051_ Slammed into Y-54 Guardian. 03054_ Mni. Grenade Launcher broken. 03054_ Destabilizing: Short circuit. Map ----- +----------------------------------------------------+ | ????????????????????????????????????????????? | | ????????????????????????????????????????????? | | ????????????????????????????????????????????? | | ????????????????????????????????????????????? | | ????????????????????????????????????????????? | | ????????????????????????????????????????????? | | ????????????????????????????????????????????? | | ????????????????????????????????????????????? | | ????????????????????????????????????????????? | | ????????????????????????????????????????????? | | ????????????????????????????????????????????? | | ????????????????????????????????????????????? | | ??????????????????????????????????######????? | | ??????????????????????????????????# #????? | | ??????????????????????????????????# ! #???## | | ??????????????????????????????????# #?### | | ??????????????????????????????????### ### | | ????????????????????????????????????# ## | | ??????????????????????????????"#????# #?#! | | ???????????????????????????? ##????# #?#= | | ?????????????????????#####+++++###### #?# | | ?????????????????????# Y ### | | ?????????????????????#g#### ####### | | ?????????????????#####g#????????????# ^ | | ?????????????????#""#/g###??????????####### | | ?????????????????#" @/ #???????????????### | | ?????????????????#" Y #?????????????????# | | ?????????????????#" / #?????????????????# | | ?????????????????#""#/ ###?????????????????# | | ?????????????????#####x#???????????????????# | | ?????????????????????# #???????????????????# | | ?????????????????????# #???????????????????# | | ?????????????????????# #??????????????????? | | ?????????????????????###??????????????????? | | ??????????????????????????????????????????# | | ??????????????????????????????????????????# | | ??????????????????????????????????????????# | | ??????????????????????????????????????????" | | ??????????????????????????????????????????" | | ??????????????????????????????????????????" | | ??????????????????????????????????????????" | | ??????????????????????????????????????????# | | ??????????????????????????????????????????# | | ??????????????????????????????????????????? | | ??????????????????????????????????????????? | | ??????????????????????????????????????????? | | ????????????????????????????????????????????? | | ????????????????????????????????????????????? | | ????????????????????????????????????????????? | | ????????????????????????????????????????????? | +----------------------------------------------------+ Best States ------------- Heat Dissipation 34 Energy Generation 19 Energy Capacity 430 Matter Stores 300 Matter Capacity 300 Sight Range 16 Terrain Scan Density 10 Armor Coverage 300 Evasion (%) 50 Recoil Reduction 4 Offensive Hacking 10 Defensive Hacking 10 Item Schematics ----------------- None Robot Schematics ------------------ None Fabricated ------------ Nothing Alien Tech Used ----------------- None Achievements -------------- None Challenges ------------ None Game ------ Seed MiniFireInterpreter Manual? 0 Play Time 00:47:45 Cumulative 26.4 hours Start 2024.05.30 @ 21:11:49 End 2024.05.31 @ 00:27:55 Sessions 2 Manual Loads 0 Difficulty Rogue Special Mode None Game No. 37 Rogue 37 Adventurer 0 Explorer 0 Win Type - Total 1 Types 1/0/0/0/0/0/0/0/0 Lore% 22 Gallery% 32 Achievement% 21 Wizard Run 0 Options --------- Layout 1 ASCII 0 Keyboard 0 Movement Arrows Keybinds 0 Fullscreen 1 Font 16/SmallcapsGlow Map View 50x35 Zoom Use 0% Tactical HUD 1 Map Filters NONE Filters NONE Steam 1 RUN: 794d7c60-bd2d-46fb-8d37-174b7aa42753